fUSD/lending_fUSD_20260422
["ID","MTS","AMOUNT","RATE_DAILY","PERIOD"]
[420953217,1776792632708,-151.0,0.0001,2]
[420953218,1776792632717,-151.0,0.0001,2]
[420953219,1776792632726,-993.29251589,0.0001,2]
[420953220,1776792632736,-1600.0,0.00010003,2]
[420953221,1776792632745,-200.0,0.00010006,2]
[420953222,1776792632754,-181.08010149,0.00010006,2]
[420953223,1776792632763,-150.0,0.00010186,2]
[420953224,1776792632773,-255.0,0.00010192,2]
[420953225,1776792632782,-500.0,0.00010285,2]
[420953226,1776792632791,-500.0,0.00010285,2]
[420953227,1776792632800,-472.17938,0.00010285,2]
[420953228,1776792632810,-500.0,0.00010285,2]
[420953229,1776792632819,-500.0,0.00010285,2]
[420953230,1776792632828,-500.0,0.00010285,2]
[420953231,1776792632838,-500.0,0.00010285,2]
[420953232,1776792632847,-500.0,0.00010285,2]
[420953233,1776792632857,-500.0,0.00010285,2]
[420953234,1776792632867,-71464.41758659,0.00010286,2]
[420953235,1776792634636,-88047.60906699,0.00010286,2]
[420953236,1776792634648,-8083.32334642,0.00010286,2]
[420953237,1776792634657,-150.0,0.00010318,2]
[420953238,1776792634667,-150.0,0.00010318,2]
[420953239,1776792634676,-1184.02,0.00010402,2]
[420953240,1776792634686,-150.44534427,0.00010411,2]
[420953241,1776792634695,-500.0,0.00010411,2]
[420953242,1776792634704,-500.0,0.00010411,2]
[420953243,1776792634713,-198.46692392,0.00010411,2]
[420953244,1776792634722,-500.0,0.00010411,2]
[420953245,1776792634732,-500.0,0.00010411,2]
[420953246,1776792634742,-500.0,0.00010411,2]
[420953247,1776792634751,-500.0,0.00010411,2]
[420953248,1776792634760,-611.19062368,0.00010411,2]
[420953249,1776792634769,-154.4434751,0.00010411,2]
[420953250,1776792634779,-160.0,0.00010411,2]
[420953251,1776792634788,-156.0,0.00010435,3]
[420953252,1776792634798,-182.14,0.00010459,2]
[420953253,1776792634807,-797.78,0.00010475,2]
[420953254,1776792634816,-999.99,0.00010475,2]
[420953255,1776792634825,-14130.61,0.00010475,2]
[420953256,1776792634835,-9999.99,0.00010475,2]
[420953257,1776792634844,-299.99,0.00010475,2]
[420953258,1776792634853,-9999.99,0.00010475,2]
[420953259,1776792634862,-9999.99,0.00010475,2]
[420953260,1776792634872,-150.99,0.00010475,2]
[420953261,1776792634882,-200.0,0.00010554,2]
[420953262,1776792634891,-187.78006525,0.00010554,2]
[420953263,1776792634900,-601.0,0.00010567,5]
[420953264,1776792634909,-327.0,0.00010587,3]
[420953265,1776792634919,-6207.49010798,0.0001059,2]
[420953266,1776792634928,-337.38556112,0.0001059,2]
[420953267,1776792634938,-2000.0,0.00010647,2]
[420953268,1776792634947,-9166.0,0.00010658,2]
[420953269,1776792634956,-265.86882315,0.00010673,2]
[420953270,1776792634965,-152.4601649,0.00010689,2]
[420953271,1776792634975,-500.0,0.00010689,2]
[420953272,1776792634986,-500.0,0.00010689,2]
[420953273,1776792634995,-500.0,0.00010689,2]
[420953274,1776792635006,-274.52750876,0.00010689,2]
[420953275,1776792635015,-500.0,0.00010689,2]
[420953276,1776792635024,-437.06804543,0.00010689,2]
[420953277,1776792635034,-500.0,0.00010689,2]
[420953278,1776792635043,-500.0,0.00010689,2]
[420953279,1776792635052,-200.0,0.0001069,2]
[420953280,1776792635062,-519.0,0.0001069,5]
[420953281,1776792635071,-166385.8666038,0.0001069,3]
[420953282,1776792635083,-79793.68976621,0.0001069,3]
[420953283,1776792635145,-19063.69039802,0.0001069,3]
[420953284,1776792635156,-3760.0,0.0001069,3]
[420953285,1776792635176,-4268.00001231,0.0001069,3]
[420953302,1776792638023,-179.06984396,0.0001068,2]
[420953303,1776792638033,-246.56175888,0.0001069,3]
[420953304,1776792638654,-783.9832,0.0001069,3]
[420953305,1776792638763,-2253.82,0.0001069,3]
[420953327,1776792640523,-18785.5,0.0001069,3]
[420953362,1776792642968,-21.13072366,0.0001069,3]
[420953458,1776792646419,-264.01816,0.0001069,3]
[420953459,1776792648751,-7538.5304427,0.0001069,3]
[420953460,1776792648763,-30700.75738754,0.0001069,3]
[420953461,1776792648780,-2297.05340097,0.0001069,3]
[420953462,1776792648796,-604.59375567,0.0001069,3]
[420953463,1776792648820,-640.97499385,0.0001069,3]
[420953467,1776792778204,500.0,7.543e-05,2]
[420953469,1776792847761,245.0,7.543e-05,3]
[420953470,1776792911548,156.0,7.543e-05,3]
[420953471,1776792911886,233.0,7.543e-05,3]
[420953472,1776792967930,221.0,7.543e-05,3]
[420953473,1776793027128,210.0,7.543e-05,3]
[420953474,1776793091656,200.0,7.543e-05,3]
[420953475,1776793152201,190.0,7.543e-05,3]
[420953476,1776793206252,188.0,7.543e-05,3]
[420953477,1776793208804,156.0,7.543e-05,3]
[420953479,1776793266902,179.0,7.543e-05,3]
[420953480,1776793326011,170.0,7.543e-05,3]
[420953481,1776793387457,161.0,7.543e-05,3]
[420953482,1776793447354,153.0,7.543e-05,3]
[420953483,1776793507787,156.0,7.543e-05,3]
[420953484,1776793507826,153.0,7.543e-05,3]
[420953485,1776793519082,150.0,8.112e-05,2]
[420953486,1776793524863,150.0,8.112e-05,2]
[420953487,1776793525044,150.0,8.112e-05,2]
[420953488,1776793527362,150.0,8.112e-05,2]
[420953489,1776793539336,150.0,8.112e-05,2]
[420953490,1776793540398,897.4302,8.112e-05,2]
[420953491,1776793540458,897.4302,8.121e-05,2]
[420953492,1776793540521,897.4302,8.131e-05,2]
[420953493,1776793540594,897.4302,8.14e-05,2]
[420953494,1776793564346,-150.0,8.112e-05,2]
[420953495,1776793564375,-150.62053055,8.112e-05,2]
[420953496,1776793569233,153.0,7.543e-05,3]
[420953497,1776793634127,153.0,7.543e-05,3]
[420953498,1776793689093,153.0,7.543e-05,3]
[420953499,1776793748437,153.0,7.543e-05,3]
[420953500,1776793756131,-897.4302,8.149e-05,2]
[420953501,1776793756153,-897.4302,8.158e-05,2]
[420953502,1776793756176,-897.4302,8.167e-05,2]
[420953503,1776793756198,-706.86806637,8.176e-05,2]
[420953505,1776793831987,-190.56213363,8.176e-05,2]
[420953506,1776793831997,-897.4302,8.185e-05,2]
[420953507,1776793832008,-897.4302,8.194e-05,2]
[420953508,1776793832017,-194.68,8.2e-05,2]
[420953509,1776793832027,-189.92,8.2e-05,2]
[420953510,1776793832036,-897.4302,8.203e-05,2]
[420953511,1776793832046,-897.4302,8.212e-05,2]
[420953512,1776793832055,-897.4302,8.222e-05,2]
[420953513,1776793832065,-897.4302,8.231e-05,2]
[420953514,1776793832075,-897.4302,8.24e-05,2]
[420953515,1776793832084,-897.4302,8.249e-05,2]
[420953516,1776793832093,-897.4302,8.258e-05,2]
[420953517,1776793832103,-897.4302,8.267e-05,2]
[420953518,1776793832112,-897.4302,8.276e-05,2]
[420953519,1776793832121,-897.4302,8.285e-05,2]
[420953520,1776793832131,-897.4302,8.294e-05,2]
[420953521,1776793832140,-897.4302,8.304e-05,2]
[420953522,1776793832150,-897.4302,8.313e-05,2]
[420953523,1776793832164,-897.4302,8.322e-05,2]
[420953524,1776793832174,-897.4302,8.331e-05,2]
[420953525,1776793832184,-150.0,8.338e-05,2]
[420953526,1776793832195,-897.4302,8.34e-05,2]
[420953527,1776793832205,-897.4302,8.349e-05,2]
[420953528,1776793832215,-897.4302,8.358e-05,2]
[420953529,1776793832224,-897.4302,8.367e-05,2]
[420953530,1776793832234,-897.4302,8.376e-05,2]
[420953531,1776793832243,-897.4302,8.385e-05,2]
[420953532,1776793832253,-897.4302,8.395e-05,2]
[420953533,1776793832263,-897.4302,8.404e-05,2]
[420953534,1776793832272,-150.0,8.413e-05,2]
[420953535,1776793832282,-897.4302,8.413e-05,2]
[420953536,1776793832292,-897.4302,8.422e-05,2]
[420953537,1776793832302,-897.4302,8.431e-05,2]
[420953538,1776793832311,-897.4302,8.44e-05,2]
[420953539,1776793832321,-897.4302,8.449e-05,2]
[420953540,1776793832331,-897.4302,8.458e-05,2]
[420953541,1776793832340,-897.4302,8.467e-05,2]
[420953542,1776793832351,-897.4302,8.477e-05,2]
[420953543,1776793832360,-897.4302,8.486e-05,2]
[420953544,1776793832370,-897.4302,8.495e-05,2]
[420953545,1776793832380,-897.4302,8.504e-05,2]
[420953546,1776793832390,-897.4302,8.513e-05,2]
[420953547,1776793832400,-897.4302,8.522e-05,2]
[420953548,1776793832410,-897.4302,8.531e-05,2]
[420953550,1776793832419,-897.4302,8.54e-05,2]
[420953552,1776793832429,-897.4302,8.549e-05,2]
[420953554,1776793832438,-897.4302,8.558e-05,2]
[420953556,1776793832448,-150.0,8.563e-05,2]
[420953558,1776793832457,-150.0,8.563e-05,2]
[420953561,1776793832467,-897.4302,8.568e-05,2]
[420953563,1776793832477,-897.4302,8.577e-05,2]
[420953565,1776793832486,-897.4302,8.586e-05,2]
[420953567,1776793832495,-897.4302,8.595e-05,2]
[420953568,1776793832504,-897.4302,8.604e-05,2]
[420953569,1776793832514,-897.4302,8.613e-05,2]
[420953570,1776793832523,-897.4302,8.622e-05,2]
[420953571,1776793832532,-897.4302,8.631e-05,2]
[420953572,1776793832542,-897.4302,8.64e-05,2]
[420953573,1776793832551,-897.4302,8.65e-05,2]
[420953574,1776793832560,-897.4302,8.659e-05,2]
[420953575,1776793832570,-897.4302,8.668e-05,2]
[420953576,1776793832580,-897.4302,8.677e-05,2]
[420953577,1776793832590,-897.4302,8.686e-05,2]
[420953578,1776793832599,-897.4302,8.695e-05,2]
[420953579,1776793832608,-897.4302,8.704e-05,2]
[420953580,1776793832618,-150.0,8.713e-05,2]
[420953581,1776793832627,-897.4302,8.713e-05,2]
[420953582,1776793832636,-578.20924308,8.722e-05,2]
[420953583,1776793832645,-173.10361607,8.722e-05,2]
[420953584,1776793832654,-500.0,8.722e-05,2]
[420953585,1776793832664,-205.22,8.722e-05,2]
[420953586,1776793832673,-897.4302,8.722e-05,2]
[420953587,1776793832683,-897.4302,8.731e-05,2]
[420953588,1776793832693,-165.46035,8.735e-05,2]
[420953589,1776793832703,-897.4302,8.741e-05,2]
[420953590,1776793832712,-3774.264159,8.749e-05,2]
[420953591,1776793832722,-480.938086,8.749e-05,2]
[420953592,1776793832731,-431.014761,8.749e-05,2]
[420953593,1776793832740,-6440.924579,8.749e-05,2]
[420953594,1776793832750,-4263.671806,8.749e-05,2]
[420953595,1776793832759,-897.4302,8.75e-05,2]
[420953596,1776793832768,-897.4302,8.759e-05,2]
[420953597,1776793832778,-897.4302,8.768e-05,2]
[420953598,1776793832788,-897.4302,8.777e-05,2]
[420953599,1776793832797,-500.0,8.777e-05,2]
[420953600,1776793832807,-897.4302,8.786e-05,2]
[420953601,1776793832816,-150.0,8.788e-05,2]
[420953602,1776793832826,-897.4302,8.795e-05,2]
[420953603,1776793832835,-897.4302,8.804e-05,2]
[420953604,1776793832844,-897.4302,8.813e-05,2]
[420953605,1776793832853,-897.4302,8.822e-05,2]
[420953606,1776793832863,-897.4302,8.832e-05,2]
[420953607,1776793832872,-897.4302,8.841e-05,2]
[420953608,1776793832882,-897.4302,8.85e-05,2]
[420953609,1776793832891,-897.4302,8.859e-05,2]
[420953610,1776793832900,-897.4302,8.868e-05,2]
[420953611,1776793832910,-897.4302,8.877e-05,2]
[420953612,1776793832919,-183.64,8.883e-05,2]
[420953613,1776793832928,-897.4302,8.886e-05,2]
[420953614,1776793832938,-897.4302,8.895e-05,2]
[420953615,1776793832948,-500.0,8.903e-05,2]
[420953616,1776793832957,-897.4302,8.904e-05,2]
[420953617,1776793832967,-897.4302,8.914e-05,2]
[420953618,1776793832977,-897.4302,8.923e-05,2]
[420953619,1776793832987,-20630.4314,8.928e-05,2]
[420953620,1776793832996,-2500.0,8.928e-05,2]
[420953621,1776793833007,-1500000.0,8.928e-05,2]
[420953622,1776793833016,-897.4302,8.932e-05,2]
[420953623,1776793833026,-897.4302,8.941e-05,2]
[420953624,1776793833036,-897.4302,8.95e-05,2]
[420953625,1776793833050,-158.51,8.954e-05,2]
[420953626,1776793833060,-897.4302,8.959e-05,2]
[420953627,1776793833069,-897.4302,8.968e-05,2]
[420953628,1776793833079,-897.4302,8.977e-05,2]
[420953629,1776793833089,-478.85,8.983e-05,2]
[420953630,1776793833100,-897.4302,8.986e-05,2]
[420953631,1776793833109,-2776.64653426,8.994e-05,2]
[420953632,1776793833122,-2223.35346574,8.994e-05,2]
[420953633,1776793833132,-1904.88539149,8.994e-05,2]
[420953634,1776793833142,-897.4302,8.995e-05,2]
[420953635,1776793833152,-218.7803074,9.003e-05,2]
[420953636,1776793833162,-897.4302,9.005e-05,2]
[420953637,1776793833172,-150.0,9.014e-05,2]
[420953638,1776793833182,-150.0,9.014e-05,2]
[420953639,1776793833192,-150.00000001,9.014e-05,2]
[420953640,1776793833202,-150.0,9.014e-05,2]
[420953641,1776793833211,-897.4302,9.014e-05,2]
[420953642,1776793833221,-150.0,9.014e-05,2]
[420953643,1776793833231,-213.9027629,9.022e-05,2]
[420953644,1776793833240,-174.61919141,9.022e-05,2]
[420953645,1776793833252,-258.1360998,9.023e-05,2]
[420953646,1776793833264,-462.99155555,9.023e-05,2]
[420953647,1776793833274,-1428.38747117,9.023e-05,2]
[420953648,1776793833284,-200.0,9.023e-05,2]
[420953649,1776793833293,-200.70865576,9.025e-05,2]
[420953650,1776793833304,-1093.8672339,9.027e-05,3]
[420953651,1776793833314,-1093.8672339,9.027e-05,3]
[420953652,1776793833323,-2321.914,9.027e-05,2]
[420953653,1776793833332,-179.81,9.027e-05,2]
[420953654,1776793833342,-276.41,9.037e-05,2]
[420953655,1776793833352,-198.58,9.037e-05,2]
[420953656,1776793833361,-213.27,9.037e-05,2]
[420953657,1776793833372,-277.63,9.037e-05,2]
[420953658,1776793833383,-275.46,9.037e-05,2]
[420953659,1776793833393,-200.0,9.341e-05,2]
[420953660,1776793833403,-181.08010149,9.57e-05,2]
[420953661,1776793833412,-1481.23780761,9.571e-05,2]
[420953662,1776793833422,-200.0,9.571e-05,2]
[420953663,1776793833431,-5977.8691,9.8e-05,2]
[420953664,1776793833440,-200.0,9.8e-05,3]
[420953665,1776793833450,-260.0,9.863e-05,2]
[420953666,1776793833460,-194.68,9.874e-05,2]
[420953667,1776793833469,-189.92,9.874e-05,2]
[420953668,1776793833479,-400.0,9.9e-05,3]
[420953669,1776793833489,-260.68,9.949e-05,2]
[420953670,1776793833498,-1331.4059114,0.0001,2]
[420953671,1776793833509,-3215.42548452,0.0001,2]
[420953672,1776793833519,-3613.59589948,0.0001,2]
[420953673,1776793833529,-2996.88070232,0.0001,2]
[420953674,1776793833539,-3305.23830085,0.0001,2]
[420953675,1776793833549,-1181.75,0.0001,2]
[420953676,1776793833558,-151.0,0.0001,2]
[420953677,1776793833568,-151.0,0.0001,2]
[420953678,1776793833577,-500.0,0.0001,2]
[420953679,1776793833587,-500.0,0.0001,2]
[420953680,1776793833596,-600.0,0.0001,3]
[420953681,1776793833606,-224.92370742,0.0001,2]
[420953682,1776793833615,-179.06984397,0.0001,2]
[420953683,1776793833624,-187.78006525,0.00010118,2]
[420953684,1776793833634,-1536.04360649,0.00010119,2]
[420953685,1776793833644,-200.0,0.00010119,2]
[420953686,1776793833654,-457.0,0.00010137,2]
[420953687,1776793833664,-457.0,0.00010137,2]
[420953688,1776793833673,-457.0,0.00010137,2]
[420953689,1776793833683,-161.46357839,0.00010137,2]
[420953690,1776793833693,-457.0,0.00010137,2]
[420953691,1776793833702,-457.0,0.00010137,2]
[420953692,1776793833711,-457.0,0.00010137,2]
[420953693,1776793833721,-457.0,0.00010137,2]
[420953694,1776793833730,-457.0,0.00010137,2]
[420953695,1776793833740,-457.0,0.00010137,2]
[420953696,1776793833749,-457.0,0.00010137,2]
[420953697,1776793833759,-457.0,0.00010137,2]
[420953698,1776793833769,-457.0,0.00010137,2]
[420953699,1776793833778,-457.0,0.00010137,2]
[420953700,1776793833788,-457.0,0.00010137,2]
[420953701,1776793833798,-457.0,0.00010137,2]
[420953702,1776793833807,-500.0,0.00010137,2]
[420953703,1776793833817,-457.0,0.00010137,2]
[420953704,1776793833827,-500.0,0.00010137,2]
[420953705,1776793833837,-500.0,0.00010137,2]
[420953706,1776793833847,-457.0,0.00010137,2]
[420953707,1776793833857,-500.0,0.00010137,2]
[420953708,1776793833867,-1079.0,0.00010137,2]
[420953709,1776793833877,-500.0,0.00010137,2]
[420953710,1776793833887,-1079.0,0.00010137,2]
[420953711,1776793833897,-500.0,0.00010137,2]
[420953712,1776793833906,-1079.0,0.00010137,2]
[420953713,1776793833916,-500.0,0.00010137,2]
[420953714,1776793833926,-1079.0,0.00010137,2]
[420953715,1776793833935,-500.0,0.00010137,2]
[420953716,1776793833945,-457.0,0.00010137,2]
[420953717,1776793833954,-500.0,0.00010137,2]
[420953718,1776793833963,-1079.0,0.00010137,2]
[420953719,1776793833973,-500.0,0.00010137,2]
[420953720,1776793833982,-1079.0,0.00010137,2]
[420953721,1776793833992,-459.20054883,0.00010137,2]
[420953722,1776793834002,-1079.0,0.00010137,2]
[420953723,1776793834012,-1079.0,0.00010137,2]
[420953724,1776793834022,-1079.0,0.00010137,2]
[420953725,1776793834032,-1079.0,0.00010137,2]
[420953726,1776793834041,-1079.0,0.00010137,2]
[420953727,1776793834051,-457.0,0.00010137,2]
[420953728,1776793834060,-1079.0,0.00010137,2]
[420953729,1776793834070,-1079.0,0.00010137,2]
[420953730,1776793834079,-1079.0,0.00010137,2]
[420953731,1776793834088,-1079.0,0.00010137,2]
[420953732,1776793834098,-1079.0,0.00010137,2]
[420953733,1776793834108,-1079.0,0.00010137,2]
[420953734,1776793834116,-457.0,0.00010137,2]
[420953735,1776793834126,-1079.0,0.00010137,2]
[420953736,1776793834135,-1079.0,0.00010137,2]
[420953737,1776793834145,-457.0,0.00010137,2]
[420953738,1776793834155,-1079.0,0.00010137,2]
[420953739,1776793834164,-457.0,0.00010137,2]
[420953740,1776793834173,-1079.0,0.00010137,2]
[420953741,1776793834183,-457.0,0.00010137,2]
[420953742,1776793834193,-1079.0,0.00010137,2]
[420953743,1776793834202,-465.0,0.00010137,2]
[420953744,1776793834212,-1079.0,0.00010137,2]
[420953745,1776793834222,-1091.0,0.00010137,2]
[420953746,1776793834231,-1000.0,0.00010186,2]
[420953747,1776793834240,-15859.3135,0.00010186,2]
[420953748,1776793834250,-160.0,0.00010361,2]
[420953749,1776793834259,-224.92370741,0.00010366,2]
[420953750,1776793834272,-5530.0,0.000104,5]
[420953751,1776793834286,-602.0,0.00010463,5]
[420953752,1776793834301,-475.0,0.00010463,5]
[420953753,1776793834311,-200.0,0.00010537,2]
[420953754,1776793834323,-250.0,0.00010537,2]
[420953755,1776793834336,-300.0,0.00010537,2]
[420953756,1776793834350,-164.3203853,0.0001066,2]
[420953757,1776793834363,-3166.6954341,0.00010662,2]
[420953758,1776793834377,-306.5323835,0.00010666,2]
[420953759,1776793834391,-200.0,0.00010667,2]
[420953760,1776793834405,-161.0,0.0001068,2]
[420953761,1776793834418,-137342.30363936,0.0001069,3]
[420953762,1776793837828,-1254.41808677,0.0001069,3]
[420953768,1776793840547,-319.38092466,0.0001069,3]
[420953769,1776793840559,-2091.3598322,0.0001069,3]
[420953770,1776793840652,-1295.44499257,0.0001069,3]
[420953771,1776793840664,-7997.52238149,0.0001069,3]
[420953779,1776793843213,-484.0,0.0001069,3]
[420953781,1776793846352,-172521.37619821,0.0001069,3]
[420953782,1776793846364,-98167.06086379,0.0001069,3]
[420953840,1776794160411,150.0,0.00011233,120]
[420954041,1776794332720,200.0,7.8e-05,2]
[420954042,1776794334823,500.0,7.9e-05,2]
[420954076,1776794350195,-700.0,8e-05,2]
[420954119,1776794369810,1500.0,7.981e-05,2]
[420954330,1776794462513,180.0,0.0001,120]
[420954505,1776794520433,-2732.924,8.129e-05,2]
[420954506,1776794520465,-173.273,8.129e-05,2]
[420954739,1776794702727,150.0,7.447e-05,2]
[420954741,1776794702791,150.0,7.584e-05,2]
[420954742,1776794702853,150.0,7.722e-05,2]
[420954764,1776794724849,150.0,7.447e-05,2]
[420954765,1776794724917,150.0,7.529e-05,2]
[420954766,1776794724988,150.0,7.612e-05,2]
[420954767,1776794725069,150.0,7.695e-05,2]
[420954768,1776794725136,150.0,7.778e-05,2]
[420954770,1776794725637,150.0,7.447e-05,2]
[420954771,1776794725695,150.0,7.493e-05,2]
[420954772,1776794725727,150.0,7.539e-05,2]
[420954773,1776794725788,150.0,7.584e-05,2]
[420954774,1776794725857,150.0,7.63e-05,2]
[420954775,1776794725927,150.0,7.676e-05,2]
[420954776,1776794725997,150.0,7.722e-05,2]
[420954777,1776794726073,150.0,7.768e-05,2]
[420954778,1776794726141,150.0,7.814e-05,2]
[420954784,1776794730660,150.0,7.447e-05,2]
[420954785,1776794730701,150.0,7.653e-05,2]
[420954786,1776794731039,150.0,7.447e-05,2]
[420954788,1776794733436,150.0,7.447e-05,2]
[420954789,1776794733473,150.0,7.484e-05,2]
[420954790,1776794733516,150.0,7.522e-05,2]
[420954791,1776794733633,150.0,7.559e-05,2]
[420954792,1776794733668,150.0,7.597e-05,2]
[420954793,1776794733702,150.0,7.635e-05,2]
[420954794,1776794733732,150.0,7.672e-05,2]
[420954795,1776794733775,150.0,7.71e-05,2]
[420954796,1776794733814,150.0,7.747e-05,2]
[420954797,1776794733847,150.0,7.785e-05,2]
[420954798,1776794733883,150.0,7.823e-05,2]
[420954803,1776794742640,150.0,7.447e-05,2]
[420954804,1776794742768,150.0,7.447e-05,2]
[420954805,1776794742816,150.0,7.447e-05,2]
[420954812,1776794748413,150.0,7.447e-05,2]
[420954813,1776794748479,150.0,7.539e-05,2]
[420954814,1776794748535,150.0,7.63e-05,2]
[420954815,1776794748603,150.0,7.722e-05,2]
[420954816,1776794748672,150.0,7.814e-05,2]
[420954818,1776794749162,150.0,7.447e-05,2]
[420954819,1776794749229,150.0,7.653e-05,2]
[420954896,1776794845188,900.0,7.8e-05,2]
[420954957,1776794907591,1135.6,7.166e-05,2]
[420954979,1776794937736,183.37,6.329e-05,2]
[420955033,1776795032176,-150.0,7.86e-05,2]
[420955034,1776795032186,-150.0,7.86e-05,2]
[420955035,1776795032196,-150.0,7.86e-05,2]
[420955036,1776795032206,-150.0,7.86e-05,2]
[420955037,1776795032216,-150.0,7.86e-05,2]
[420955038,1776795032226,-56.24355529,7.86e-05,2]
[420955039,1776795032239,-93.75644471,7.86e-05,2]
[420955040,1776795032249,-150.0,7.86e-05,2]
[420955041,1776795032259,-206.65629422,7.879e-05,2]
[420955042,1776795032270,-150.0,7.898e-05,2]
[420955043,1776795032281,-1200.0,7.899e-05,2]
[420955044,1776795032292,-1758.55238525,7.9e-05,2]
[420955045,1776795032315,-141.44761475,7.9e-05,2]
[420955046,1776795032325,-150.0,7.906e-05,2]
[420955047,1776795032336,-150.0,7.906e-05,2]
[420955048,1776795032348,-150.0,7.935e-05,2]
[420955049,1776795032358,-150.0,7.943e-05,2]
[420955050,1776795032368,-150.0,7.952e-05,2]
[420955051,1776795032382,-150.0,7.973e-05,2]
[420955052,1776795032393,-150.0,7.998e-05,2]
[420955053,1776795032402,-150.0,7.998e-05,2]
[420955054,1776795032412,-150.0,7.998e-05,2]
[420955055,1776795032422,-2900.0,8e-05,2]
[420955056,1776795032431,-150.0,8.011e-05,2]
[420955057,1776795032441,-150.0,8.026e-05,2]
[420955058,1776795032451,-150.0,8.044e-05,2]
[420955060,1776795032462,-150.0,8.048e-05,2]
[420955062,1776795032472,-150.0,8.067e-05,2]
[420955064,1776795032482,-150.0,8.067e-05,2]
[420955066,1776795032493,-150.0,8.086e-05,2]
[420955068,1776795032503,-150.0,8.09e-05,2]
[420955070,1776795032513,-150.0,8.09e-05,2]
[420955072,1776795032523,-150.0,8.108e-05,2]
[420955075,1776795032533,-150.0,8.124e-05,2]
[420955077,1776795032544,-500.0,8.129e-05,2]
[420955079,1776795032555,-150.0,8.136e-05,2]
[420955081,1776795032566,-150.0,8.136e-05,2]
[420955083,1776795032578,-150.0,8.161e-05,2]
[420955085,1776795032589,-150.0,8.182e-05,2]
[420955087,1776795032599,-150.0,8.182e-05,2]
[420955089,1776795032614,-150.0,8.191e-05,2]
[420955091,1776795032624,-10000.01,8.193e-05,2]
[420955093,1776795032634,-607.489,8.195e-05,2]
[420955095,1776795032644,-150.0,8.199e-05,2]
[420955097,1776795032654,-1372.57,8.219e-05,2]
[420955099,1776795032665,-150.0,8.228e-05,2]
[420955101,1776795032674,-150.0,8.236e-05,2]
[420955103,1776795032684,-266.02,8.254e-05,2]
[420955105,1776795032694,-500.0,8.273e-05,2]
[420955107,1776795032705,-150.0,8.274e-05,2]
[420955109,1776795032715,-268.41415439,8.274e-05,2]
[420955111,1776795032725,-150.0,8.274e-05,2]
[420955113,1776795032735,-150.0,8.274e-05,2]
[420955115,1776795032745,-150.0,8.274e-05,2]
[420955117,1776795032754,-169.78843064,8.274e-05,2]
[420955119,1776795032764,-150.0,8.274e-05,2]
[420955120,1776795032774,-150.0,8.274e-05,2]
[420955121,1776795032784,-150.0,8.274e-05,2]
[420955122,1776795032794,-154.7246712,8.292e-05,2]
[420955123,1776795032804,-171.55155988,8.294e-05,2]
[420955124,1776795032814,-500.0,8.294e-05,2]
[420955125,1776795032823,-500.0,8.294e-05,2]
[420955126,1776795032833,-500.0,8.294e-05,2]
[420955127,1776795032846,-421.24206811,8.294e-05,2]
[420955128,1776795032856,-500.0,8.294e-05,2]
[420955129,1776795032866,-500.0,8.294e-05,2]
[420955130,1776795032876,-500.0,8.294e-05,2]
[420955131,1776795032886,-500.0,8.294e-05,2]
[420955132,1776795032896,-500.0,8.294e-05,2]
[420955133,1776795032906,-500.0,8.294e-05,2]
[420955134,1776795032915,-500.0,8.294e-05,2]
[420955135,1776795032925,-500.0,8.294e-05,2]
[420955136,1776795032935,-500.0,8.294e-05,2]
[420955137,1776795032944,-500.0,8.294e-05,2]
[420955138,1776795032954,-500.0,8.294e-05,2]
[420955139,1776795032964,-500.0,8.294e-05,2]
[420955140,1776795032974,-521.32531256,8.294e-05,2]